fUSD/lending_fUSD_20240319
["ID","MTS","AMOUNT","RATE_DAILY","PERIOD"]
[319593315,1710885059041,-838.02,0.0003041,2]
[319593316,1710885059050,-415.9899012,0.0003041,2]
[319593317,1710885059060,-500.0,0.0003041,2]
[319593318,1710885059070,-1302.7,0.0003041,2]
[319593319,1710885059080,-2820.33,0.0003041,2]
[319593320,1710885059089,-500.0,0.0003041,2]
[319593321,1710885059099,-500.0,0.0003041,2]
[319593322,1710885059108,-500.0,0.0003041,2]
[319593323,1710885059118,-2171.52,0.0003041,2]
[319593324,1710885059127,-4792.93,0.0003041,2]
[319593325,1710885059137,-1199.36,0.0003041,2]
[319593326,1710885059146,-500.0,0.0003041,2]
[319593327,1710885059156,-500.0,0.0003041,2]
[319593328,1710885059165,-2181.61,0.0003041,2]
[319593329,1710885059175,-500.0,0.0003041,2]
[319593330,1710885059185,-500.0,0.0003041,2]
[319593331,1710885059196,-500.0,0.0003041,2]
[319593332,1710885059206,-500.0,0.0003041,2]
[319593333,1710885059215,-501.95,0.0003041,2]
[319593334,1710885059225,-1621.75,0.0003041,2]
[319593335,1710885059234,-500.0,0.0003041,2]
[319593336,1710885059244,-589.7,0.0003041,2]
[319593337,1710885059253,-855.86,0.0003041,2]
[319593338,1710885059263,-500.0,0.0003041,2]
[319593339,1710885059272,-3227.64,0.0003041,2]
[319593340,1710885059282,-500.0,0.0003041,2]
[319593341,1710885059292,-863.41,0.0003041,2]
[319593342,1710885059301,-2111.52,0.0003041,2]
[319593343,1710885059312,-2950.43,0.0003041,2]
[319593344,1710885059322,-500.0,0.0003041,2]
[319593345,1710885059332,-500.0,0.0003041,2]
[319593346,1710885059342,-500.0,0.0003041,2]
[319593347,1710885059351,-5122.72,0.0003041,2]
[319593348,1710885059361,-500.0,0.0003041,2]
[319593349,1710885059370,-824.14,0.0003041,2]
[319593350,1710885059380,-10026.4,0.0003041,2]
[319593351,1710885059390,-500.0,0.0003041,2]
[319593352,1710885059399,-500.0,0.0003041,2]
[319593353,1710885059409,-415.38131377,0.0003041,2]
[319593354,1710885059418,-2275.12,0.0003041,2]
[319593355,1710885059428,-500.0,0.0003041,2]
[319593356,1710885059439,-1033.05,0.0003041,2]
[319593357,1710885059450,-500.0,0.0003041,2]
[319593358,1710885059460,-565.71,0.0003041,2]
[319593359,1710885059470,-500.0,0.0003041,2]
[319593360,1710885059480,-126732.2,0.0003041,2]
[319593361,1710885059489,-504.07,0.0003041,2]
[319593362,1710885059498,-500.0,0.0003041,2]
[319593363,1710885059508,-500.0,0.0003041,2]
[319593364,1710885059519,-500.0,0.0003041,2]
[319593365,1710885059530,-4852.56,0.0003041,2]
[319593366,1710885059539,-500.0,0.0003041,2]
[319593367,1710885059549,-500.0,0.0003041,2]
[319593368,1710885059559,-2937.74,0.0003041,2]
[319593369,1710885059569,-777.71,0.0003041,2]
[319593370,1710885059578,-1976.68,0.0003041,2]
[319593371,1710885059587,-1133.54,0.0003041,2]
[319593372,1710885059596,-500.0,0.0003041,2]
[319593373,1710885059609,-2119.46,0.0003041,2]
[319593374,1710885059618,-7711.4,0.0003041,2]
[319593375,1710885059628,-524.36,0.0003041,2]
[319593376,1710885059637,-500.0,0.0003041,2]
[319593377,1710885059646,-500.0,0.0003041,2]
[319593378,1710885059655,-14442.37,0.0003041,2]
[319593379,1710885059665,-7310.51,0.0003041,2]
[319593380,1710885059674,-500.0,0.0003041,2]
[319593381,1710885059684,-500.0,0.0003041,2]
[319593382,1710885059693,-500.0,0.0003041,2]
[319593383,1710885059703,-5376.56,0.0003041,2]
[319593384,1710885059713,-4230.03,0.0003041,2]
[319593385,1710885059722,-582.24,0.0003041,2]
[319593386,1710885059732,-751.89,0.0003041,2]
[319593387,1710885059741,-542.91,0.0003041,2]
[319593388,1710885059751,-500.0,0.0003041,2]
[319593389,1710885059760,-508.47710853,0.0003041,2]
[319593390,1710885059770,-500.0,0.0003041,2]
[319593391,1710885059779,-500.0,0.0003041,2]
[319593392,1710885059789,-1949.45,0.0003041,2]
[319593393,1710885059798,-5623.75,0.0003041,2]
[319593394,1710885059809,-636.0,0.0003041,2]
[319593395,1710885059818,-647.45852964,0.0003041,2]
[319593396,1710885059828,-500.0,0.0003041,2]
[319593397,1710885059838,-1033.59,0.0003041,2]
[319593398,1710885059847,-500.0,0.0003041,2]
[319593399,1710885059856,-5877.04,0.0003041,2]
[319593400,1710885059866,-825.5,0.0003041,2]
[319593401,1710885059875,-521.04,0.0003041,2]
[319593402,1710885059884,-500.0,0.0003041,2]
[319593403,1710885059894,-522.70684426,0.0003041,2]
[319593404,1710885059904,-503.31,0.0003041,2]
[319593405,1710885059914,-3068.4,0.0003041,2]
[319593406,1710885059923,-2857.27,0.0003041,2]
[319593407,1710885059933,-500.0,0.0003041,2]
[319593408,1710885059942,-631.3,0.0003041,2]
[319593409,1710885059952,-814.62,0.0003041,2]
[319593410,1710885059961,-500.0,0.0003041,2]
[319593411,1710885059971,-2550.99,0.0003041,2]
[319593412,1710885059981,-500.0,0.0003041,2]
[319593413,1710885059991,-500.0,0.0003041,2]
[319593414,1710885060000,-1149.73,0.0003041,2]
[319593415,1710885060010,-7487.75,0.0003041,2]
[319593416,1710885060021,-1638.18,0.0003041,2]
[319593417,1710885060031,-7814.4,0.0003041,2]
[319593418,1710885060040,-500.0,0.0003041,2]
[319593419,1710885060050,-705.8,0.0003041,2]
[319593420,1710885060060,-529.96,0.0003041,2]
[319593421,1710885060070,-594.04,0.0003041,2]
[319593422,1710885060080,-500.0,0.0003041,2]
[319593423,1710885060090,-182.35539596,0.0003041,2]
[319593424,1710885060100,-500.0,0.0003041,2]
[319593425,1710885060109,-500.0,0.0003041,2]
[319593426,1710885060322,-3016.27,0.0003041,2]
[319593427,1710885060333,-500.0,0.0003041,2]
[319593428,1710885060342,-500.0,0.0003041,2]
[319593429,1710885060351,-500.801966,0.0003041,2]
[319593430,1710885060360,-38480.53,0.0003041,2]
[319593431,1710885060369,-500.0,0.0003041,2]
[319593432,1710885060379,-968.19,0.0003041,2]
[319593433,1710885060388,-2988.01,0.0003041,2]
[319593434,1710885060397,-767.81,0.0003041,2]
[319593435,1710885060406,-3358.0,0.0003041,2]
[319593436,1710885060416,-500.0,0.0003041,2]
[319593437,1710885060425,-2995.65,0.0003041,2]
[319593438,1710885060435,-500.0,0.0003041,2]
[319593439,1710885060446,-500.0,0.0003041,2]
[319593440,1710885060456,-2879.31,0.0003041,2]
[319593441,1710885060465,-500.0,0.0003041,2]
[319593442,1710885060475,-3475.26,0.0003041,2]
[319593443,1710885060485,-817.64,0.0003041,2]
[319593444,1710885060495,-540.54650529,0.0003041,2]
[319593445,1710885060504,-626.59,0.0003041,2]
[319593446,1710885060513,-1532.23,0.0003041,2]
[319593447,1710885060522,-500.0,0.0003041,2]
[319593448,1710885060533,-1675.59,0.0003041,2]
[319593449,1710885060543,-1175.56,0.0003041,2]
[319593450,1710885060553,-1109.08,0.0003041,2]
[319593451,1710885060563,-1104.88,0.0003041,2]
[319593452,1710885060572,-1008.18,0.0003041,2]
[319593453,1710885060581,-2383.57,0.0003041,2]
[319593454,1710885060590,-6551.95,0.0003041,2]
[319593455,1710885060599,-20378.39,0.0003041,2]
[319593456,1710885060610,-3428.01,0.0003041,2]
[319593457,1710885060620,-500.0,0.0003041,2]
[319593458,1710885060629,-500.0,0.0003041,2]
[319593459,1710885060638,-500.0,0.0003041,2]
[319593460,1710885060647,-500.0,0.0003041,2]
[319593461,1710885060657,-724.41,0.0003041,2]
[319593462,1710885060667,-2691.76,0.0003041,2]
[319593463,1710885060677,-4023.07,0.0003041,2]
[319593464,1710885060686,-500.0,0.0003041,2]
[319593465,1710885060695,-532.04,0.0003041,2]
[319593466,1710885060705,-518.98,0.0003041,2]
[319593467,1710885060714,-3655.41,0.0003041,2]
[319593468,1710885060724,-500.0,0.0003041,2]
[319593469,1710885060735,-3100.4,0.0003041,2]
[319593470,1710885060745,-532.61,0.0003041,2]
[319593471,1710885060755,-500.0,0.0003041,2]
[319593472,1710885060764,-5255.9,0.0003041,2]
[319593473,1710885060773,-1495.58,0.0003041,2]
[319593474,1710885060783,-646.23,0.0003041,2]
[319593475,1710885060792,-500.0,0.0003041,2]
[319593476,1710885060802,-500.0,0.0003041,2]
[319593477,1710885060812,-500.0,0.0003041,2]
[319593478,1710885060822,-856.3,0.0003041,2]
[319593479,1710885060831,-1919.76,0.0003041,2]
[319593480,1710885060841,-2848.19,0.0003041,2]
[319593481,1710885060851,-500.0,0.0003041,2]
[319593482,1710885060860,-514.35,0.0003041,2]
[319593483,1710885060870,-84885.72,0.0003041,2]
[319593484,1710885060878,-917.99,0.0003041,2]
[319593485,1710885060888,-7528.25,0.0003041,2]
[319593486,1710885060897,-2075.6,0.0003041,2]
[319593487,1710885060906,-556.06,0.0003041,2]
[319593488,1710885060915,-4053.66,0.0003041,2]
[319593489,1710885060925,-500.0,0.0003041,2]
[319593490,1710885060934,-950.92,0.0003041,2]
[319593491,1710885060943,-1498.56,0.0003041,2]
[319593492,1710885060953,-500.0,0.0003041,2]
[319593493,1710885060962,-6114.82,0.0003041,2]
[319593494,1710885060971,-1068.02,0.0003041,2]
[319593495,1710885060981,-1140.75,0.0003041,2]
[319593496,1710885060990,-1363.9,0.0003041,2]
[319593497,1710885060999,-500.0,0.0003041,2]
[319593498,1710885061009,-500.0,0.0003041,2]
[319593499,1710885061018,-680.37,0.0003041,2]
[319593500,1710885061027,-6608.67,0.0003041,2]
[319593501,1710885061037,-500.0,0.0003041,2]
[319593502,1710885061046,-340.6943127,0.0003041,2]
[319593503,1710885061056,-500.0,0.0003041,2]
[319593504,1710885061066,-7331.78,0.0003041,2]
[319593505,1710885061075,-535.13,0.0003041,2]
[319593506,1710885061084,-5255.76,0.0003041,2]
[319593507,1710885061094,-501.67,0.0003041,2]
[319593508,1710885061103,-1065.89,0.0003041,2]
[319593509,1710885061112,-500.0,0.0003041,2]
[319593510,1710885061122,-2244.41,0.0003041,2]
[319593511,1710885061131,-12679.11,0.0003041,2]
[319593512,1710885061140,-1134.2,0.0003041,2]
[319593513,1710885061149,-500.0,0.0003041,2]
[319593514,1710885061159,-500.0,0.0003041,2]
[319593515,1710885061169,-500.0,0.0003041,2]
[319593516,1710885061178,-270.17,0.0003041,2]
[319593517,1710885061188,-952.29,0.0003041,2]
[319593518,1710885061198,-5689.03,0.0003041,2]
[319593519,1710885061207,-500.0,0.0003041,2]
[319593520,1710885061216,-16057.66,0.0003041,2]
[319593521,1710885061226,-500.0,0.0003041,2]
[319593522,1710885061235,-661.71,0.0003041,2]
[319593523,1710885061245,-9318.38,0.0003041,2]
[319593524,1710885061255,-6799.03,0.0003041,2]
[319593525,1710885061264,-4026.73,0.0003041,2]
[319593526,1710885061273,-3035.5,0.0003041,2]
[319593527,1710885061283,-3750.07,0.0003041,2]
[319593528,1710885061293,-935.16,0.0003041,2]
[319593529,1710885061303,-6185.77,0.0003041,2]
[319593530,1710885061314,-1750.15,0.0003041,2]
[319593531,1710885061323,-525.2312745,0.0003041,2]
[319593532,1710885061332,-507.49,0.0003041,2]
[319593533,1710885061341,-501.96186555,0.0003041,2]
[319593534,1710885061350,-2644.39,0.0003041,2]
[319593535,1710885061359,-500.0,0.0003041,2]
[319593536,1710885061369,-500.0,0.0003041,2]
[319593537,1710885061378,-21984.05,0.0003041,2]
[319593538,1710885061387,-500.0,0.0003041,2]
[319593539,1710885061396,-1656.75,0.0003041,2]
[319593540,1710885061406,-682.19,0.0003041,2]
[319593541,1710885061415,-3232.39,0.0003041,2]
[319593542,1710885061424,-500.0,0.0003041,2]
[319593543,1710885061434,-4012.77,0.0003041,2]
[319593544,1710885061445,-5906.29,0.0003041,2]
[319593545,1710885061457,-2450.74,0.0003041,2]
[319593546,1710885061466,-533.9844711,0.0003041,2]
[319593547,1710885061476,-500.0,0.0003041,2]
[319593548,1710885061485,-500.0,0.0003041,2]
[319593549,1710885061495,-500.0,0.0003041,2]
[319593550,1710885061504,-500.0,0.0003041,2]
[319593551,1710885061513,-500.0,0.0003041,2]
[319593552,1710885061524,-500.0,0.0003041,2]
[319593553,1710885061533,-500.0,0.0003041,2]
[319593554,1710885061542,-500.0,0.0003041,2]
[319593555,1710885061551,-500.0,0.0003041,2]
[319593556,1710885061561,-1898.34,0.0003041,2]
[319593557,1710885061571,-6356.12,0.0003041,2]
[319593558,1710885061581,-860.9,0.0003041,2]
[319593559,1710885061590,-500.0,0.0003041,2]
[319593560,1710885061599,-988.62,0.0003041,2]
[319593561,1710885061609,-741.49,0.0003041,2]
[319593562,1710885061618,-500.0,0.0003041,2]
[319593563,1710885061628,-502.93,0.0003041,2]
[319593564,1710885061637,-10393.93,0.0003041,2]
[319593565,1710885061646,-3281.78,0.0003041,2]
[319593566,1710885061656,-887.69,0.0003041,2]
[319593567,1710885061665,-500.0,0.0003041,2]
[319593568,1710885061676,-500.0,0.0003041,2]
[319593569,1710885061686,-2054.31,0.0003041,2]
[319593570,1710885061695,-1073.2,0.0003041,2]
[319593571,1710885061704,-500.0,0.0003041,2]
[319593572,1710885061714,-500.0,0.0003041,2]
[319593573,1710885061723,-500.0,0.0003041,2]
[319593574,1710885061733,-500.0,0.0003041,2]
[319593575,1710885061743,-5676.82,0.0003041,2]
[319593576,1710885061752,-2336.1,0.0003041,2]
[319593577,1710885061762,-784.81,0.0003041,2]
[319593578,1710885061771,-500.0,0.0003041,2]
[319593579,1710885061781,-2928.09,0.0003041,2]
[319593580,1710885061790,-958.78,0.0003041,2]
[319593581,1710885061799,-5305.03,0.0003041,2]
[319593582,1710885061809,-12462.52,0.0003041,2]
[319593583,1710885061818,-742.85,0.0003041,2]
[319593584,1710885061827,-6273.21,0.0003041,2]
[319593585,1710885061837,-500.0,0.0003041,2]
[319593586,1710885061846,-3248.64,0.0003041,2]
[319593587,1710885061856,-500.0,0.0003041,2]
[319593588,1710885061866,-7424.85,0.0003041,2]
[319593589,1710885061875,-9028.78,0.0003041,2]
[319593590,1710885061884,-500.0,0.0003041,2]
[319593591,1710885061894,-500.0,0.0003041,2]
[319593592,1710885061903,-8000.71,0.0003041,2]
[319593593,1710885061913,-7152.27,0.0003041,2]
[319593594,1710885061922,-603.25,0.0003041,2]
[319593595,1710885061931,-500.0,0.0003041,2]
[319593596,1710885061941,-920.58,0.0003041,2]
[319593597,1710885061950,-862.02,0.0003041,2]
[319593598,1710885061959,-11402.88,0.0003041,2]
[319593599,1710885061968,-5180.59,0.0003041,2]
[319593600,1710885061978,-1058.28,0.0003041,2]
[319593601,1710885061987,-500.0,0.0003041,2]
[319593602,1710885061998,-6676.62,0.0003041,2]
[319593603,1710885062015,-50748.97,0.0003041,2]
[319593604,1710885062028,-12563.76,0.0003041,2]
[319593605,1710885062038,-500.0,0.0003041,2]
[319593606,1710885062049,-4392.06,0.0003041,2]
[319593607,1710885062060,-500.0,0.0003041,2]
[319593608,1710885062069,-947.45,0.0003041,2]
[319593609,1710885062078,-994.47,0.0003041,2]
[319593610,1710885062087,-6289.47,0.0003041,2]
[319593611,1710885062096,-1127.56,0.0003041,2]
[319593612,1710885062105,-500.0,0.0003041,2]
[319593613,1710885062115,-500.0,0.0003041,2]
[319593614,1710885062124,-1563.9,0.0003041,2]
[319593615,1710885062133,-1554.32,0.0003041,2]
[319593616,1710885062142,-2538.59,0.0003041,2]
[319593617,1710885062151,-9279.39,0.0003041,2]
[319593618,1710885062162,-2973.35,0.0003041,2]
[319593619,1710885062171,-500.0,0.0003041,2]
[319593620,1710885062181,-1071.73,0.0003041,2]
[319593621,1710885062191,-1557.91,0.0003041,2]
[319593622,1710885062200,-500.0,0.0003041,2]
[319593623,1710885062210,-539.80810754,0.0003041,2]
[319593624,1710885062220,-5460.3,0.0003041,2]
[319593625,1710885062229,-921.84,0.0003041,2]
[319593626,1710885062239,-1497.67,0.0003041,2]
[319593627,1710885062249,-549.68,0.0003041,2]
[319593628,1710885062259,-866.95,0.0003041,2]
[319593629,1710885062269,-500.0,0.0003041,2]
[319593630,1710885062596,-500.0,0.0003041,2]
[319593631,1710885062622,-23885.26,0.0003041,2]
[319593632,1710885062632,-6038.59,0.0003041,2]
[319593633,1710885062642,-34338.3,0.0003041,2]
[319593634,1710885062651,-2241.19,0.0003041,2]
[319593635,1710885062661,-500.0,0.0003041,2]
[319593636,1710885062672,-870.15,0.0003041,2]
[319593637,1710885062682,-1003.35,0.0003041,2]
[319593638,1710885062692,-500.0,0.0003041,2]
[319593639,1710885062702,-5378.59,0.0003041,2]
[319593640,1710885062711,-5507.6,0.0003041,2]
[319593641,1710885062721,-615.59,0.0003041,2]
[319593642,1710885062730,-500.0,0.0003041,2]
[319593643,1710885062740,-681.39,0.0003041,2]
[319593644,1710885062750,-500.0,0.0003041,2]
[319593645,1710885062759,-500.0,0.0003041,2]
[319593646,1710885062769,-3623.08,0.0003041,2]
[319593647,1710885062778,-500.0,0.0003041,2]
[319593648,1710885062787,-659.74,0.0003041,2]
[319593649,1710885062796,-1648.34,0.0003041,2]
[319593650,1710885062806,-500.0,0.0003041,2]
[319593651,1710885062817,-500.0,0.0003041,2]
[319593652,1710885062826,-7204.29,0.0003041,2]
[319593653,1710885062835,-500.0,0.0003041,2]
[319593654,1710885062844,-5688.06,0.0003041,2]
[319593655,1710885062854,-210.12387006,0.0003041,2]
[319593656,1710885062863,-976.18,0.0003041,2]
[319593657,1710885062872,-1912.73,0.0003041,2]
[319593658,1710885062881,-3082.4,0.0003041,2]
[319593659,1710885062891,-2522.27,0.0003041,2]
[319593660,1710885062900,-6424.1,0.0003041,2]
[319593661,1710885062909,-1570.96,0.0003041,2]
[319593662,1710885062918,-1409.47,0.0003041,2]
[319593663,1710885062927,-500.0,0.0003041,2]
[319593664,1710885062937,-500.0,0.0003041,2]
[319593665,1710885062946,-2703.38,0.0003041,2]
[319593666,1710885062955,-989.66,0.0003041,2]
[319593667,1710885062964,-10351.23,0.0003041,2]
[319593668,1710885062973,-500.0,0.0003041,2]
[319593669,1710885062982,-500.0,0.0003041,2]
[319593670,1710885062991,-723.42,0.0003041,2]
[319593671,1710885063001,-500.0,0.0003041,2]
[319593672,1710885063010,-3159.85,0.0003041,2]
[319593673,1710885063019,-19207.21,0.0003041,2]
[319593674,1710885063029,-1575.99,0.0003041,2]
[319593675,1710885063038,-3910.17,0.0003041,2]
[319593676,1710885063047,-2518.49,0.0003041,2]
[319593677,1710885063058,-500.0,0.0003041,2]
[319593678,1710885063068,-500.0,0.0003041,2]
[319593679,1710885063077,-500.0,0.0003041,2]
[319593680,1710885063086,-602.98,0.0003041,2]
[319593681,1710885063096,-2902.62,0.0003041,2]
[319593682,1710885063105,-1081.46,0.0003041,2]
[319593683,1710885063114,-500.0,0.0003041,2]
[319593684,1710885063123,-996.99,0.0003041,2]
[319593685,1710885063133,-500.0,0.0003041,2]
[319593686,1710885063142,-11316.17,0.0003041,2]
[319593687,1710885063152,-555.16011873,0.0003041,2]
[319593688,1710885063161,-722.94,0.0003041,2]
[319593689,1710885063171,-21059.27,0.0003041,2]
[319593690,1710885063182,-1144.28,0.0003041,2]
[319593691,1710885063192,-3248.34,0.0003041,2]
[319593692,1710885063203,-500.0,0.0003041,2]
[319593693,1710885063214,-592.77,0.0003041,2]
[319593694,1710885063230,-611.45,0.0003041,2]
[319593695,1710885063246,-500.0,0.0003041,2]
[319593696,1710885063256,-500.0,0.0003041,2]
[319593697,1710885063266,-1214.02,0.0003041,2]
[319593698,1710885063275,-5044.94,0.0003041,2]
[319593699,1710885063285,-500.0,0.0003041,2]
[319593700,1710885063294,-500.0,0.0003041,2]
[319593701,1710885063304,-6225.21,0.0003041,2]
[319593702,1710885063315,-856.7,0.0003041,2]
[319593703,1710885063324,-608.72,0.0003041,2]
[319593704,1710885063335,-500.0,0.0003041,2]
[319593705,1710885063345,-1511.11,0.0003041,2]
[319593706,1710885063354,-1279.36,0.0003041,2]
[319593707,1710885063363,-500.0,0.0003041,2]
[319593708,1710885063372,-500.0,0.0003041,2]
[319593709,1710885063382,-508.13336179,0.0003041,2]
[319593710,1710885063392,-500.0,0.0003041,2]
[319593711,1710885063402,-8737.55,0.0003041,2]
[319593712,1710885063412,-11752.03,0.0003041,2]
[319593713,1710885063421,-4482.5,0.0003041,2]
[319593714,1710885063431,-500.0,0.0003041,2]
[319593715,1710885063441,-1788.46,0.0003041,2]
[319593716,1710885063452,-500.0,0.0003041,2]
[319593717,1710885063462,-5316.22,0.0003041,2]
[319593718,1710885063472,-500.0,0.0003041,2]
[319593719,1710885063482,-1321.67,0.0003041,2]
[319593720,1710885063492,-22991.35,0.0003041,2]
[319593721,1710885063502,-518.08,0.0003041,2]
[319593722,1710885063512,-1177.76,0.0003041,2]
[319593723,1710885063522,-500.0,0.0003041,2]
[319593724,1710885063533,-505.75,0.0003041,2]
[319593725,1710885063543,-500.0,0.0003041,2]
[319593726,1710885063553,-2886.03,0.0003041,2]
[319593727,1710885063564,-1429.54,0.0003041,2]
[319593728,1710885063575,-500.0,0.0003041,2]
[319593729,1710885063584,-3473.42,0.0003041,2]
[319593730,1710885063594,-20562.17,0.0003041,2]
[319593731,1710885063604,-4026.93,0.0003041,2]
[319593732,1710885063613,-500.0,0.0003041,2]
[319593733,1710885063622,-805.12,0.0003041,2]
[319593734,1710885063631,-981.11,0.0003041,2]
[319593735,1710885063642,-500.0,0.0003041,2]
[319593736,1710885063651,-877.4,0.0003041,2]
[319593737,1710885063661,-500.0,0.0003041,2]
[319593738,1710885063670,-1121.88,0.0003041,2]
[319593739,1710885063680,-836.09,0.0003041,2]
[319593740,1710885063691,-500.0,0.0003041,2]
[319593741,1710885063701,-500.0,0.0003041,2]
[319593742,1710885063709,-12965.17,0.0003041,2]
[319593743,1710885063719,-8047.18,0.0003041,2]
[319593744,1710885063728,-4640.74,0.0003041,2]
[319593745,1710885063737,-6661.58,0.0003041,2]
[319593746,1710885063747,-500.0,0.0003041,2]
[319593747,1710885063756,-500.0,0.0003041,2]
[319593748,1710885063766,-720.32,0.0003041,2]
[319593749,1710885063775,-500.0,0.0003041,2]
[319593750,1710885063784,-3306.12,0.0003041,2]
[319593751,1710885063794,-1406.25,0.0003041,2]
[319593752,1710885063803,-603.58,0.0003041,2]
[319593753,1710885063814,-500.0,0.0003041,2]
[319593754,1710885063823,-500.0,0.0003041,2]
[319593755,1710885063832,-1438.11,0.0003041,2]
[319593756,1710885063842,-500.0,0.0003041,2]
[319593757,1710885063851,-6333.98,0.0003041,2]
[319593758,1710885063860,-26854.72,0.0003041,2]
[319593759,1710885063869,-2692.37,0.0003041,2]
[319593760,1710885063879,-614.48,0.0003041,2]
[319593761,1710885063888,-1298.71,0.0003041,2]
[319593762,1710885063898,-2847.31,0.0003041,2]
[319593763,1710885063907,-500.0,0.0003041,2]
[319593764,1710885063916,-1953.31,0.0003041,2]
[319593765,1710885063925,-276.95397871,0.0003041,2]
[319593766,1710885063935,-521.8,0.0003041,2]
[319593767,1710885063944,-972.96,0.0003041,2]
[319593768,1710885063953,-500.0,0.0003041,2]
[319593769,1710885063963,-599.79,0.0003041,2]
[319593770,1710885063973,-1902.54,0.0003041,2]
[319593771,1710885063982,-1686.82,0.0003041,2]
[319593772,1710885063992,-673.97,0.0003041,2]
[319593773,1710885064001,-649.62,0.0003041,2]
[319593774,1710885064011,-26670.31,0.0003041,2]
[319593775,1710885064020,-500.0,0.0003041,2]
[319593776,1710885064030,-5843.77,0.0003041,2]
[319593777,1710885064040,-1828.95,0.0003041,2]
[319593778,1710885064049,-1109.32,0.0003041,2]
[319593779,1710885064058,-691.9,0.0003041,2]
[319593780,1710885064068,-1199.84,0.0003041,2]
[319593781,1710885064077,-1216.0,0.0003041,2]
[319593782,1710885064087,-500.0,0.0003041,2]
[319593783,1710885064096,-510.87756371,0.0003041,2]
[319593784,1710885064106,-472.0,0.00030411,4]
[319593785,1710885064115,-177.48552002,0.00030446,5]
[319593786,1710885064124,-599.0,0.00030675,5]
[319593787,1710885064134,-222.032006,0.0003068,3]
[319593788,1710885064143,-222.032006,0.0003068,4]
[319593789,1710885064153,-222.032006,0.00030681,4]
[319593790,1710885064162,-222.032006,0.00030681,3]
[319593791,1710885064172,-931.04300314,0.00030681,2]
[319593792,1710885064181,-1216.46329409,0.00030682,4]
[319593793,1710885064191,-150.0,0.00030683,2]
[319593794,1710885064201,-150.0,0.00030683,2]
[319593795,1710885064211,-905.92,0.00030684,2]
[319593796,1710885064220,-760.8,0.00030684,2]
[319593797,1710885064229,-500.0,0.00030684,2]
[319593798,1710885064239,-500.0,0.00030684,2]
[319593799,1710885064249,-918.16,0.00030684,2]
[319593800,1710885064259,-1354.5,0.00030684,2]
[319593801,1710885064268,-500.0,0.00030684,2]
[319593802,1710885064278,-500.0,0.00030684,2]
[319593803,1710885064288,-461.00127448,0.00030684,2]
[319593804,1710885064297,-150.0,0.00030684,2]
[319593805,1710885064307,-563.69,0.00030684,2]
[319593806,1710885064317,-645.38894959,0.00030684,2]
[319593807,1710885064326,-553.29,0.00030684,2]
[319593808,1710885064335,-500.0,0.00030684,2]
[319593809,1710885064345,-500.0,0.00030684,2]
[319593810,1710885064355,-500.0,0.00030684,2]
[319593811,1710885064365,-500.0,0.00030684,2]
[319593812,1710885064375,-500.0,0.00030684,2]
[319593813,1710885064384,-500.0,0.00030684,2]
[319593814,1710885064393,-576.34,0.00030684,2]